bitfinex/quotes_SOLUSD_20250123
["timestamp","ask_amount","ask_price","bid_price","bid_amount"]
[1737644922640,38.71673047,249.06,248.71,23.776884]
[1737644922954,43.42,249.51,248.85,1.0]
[1737644922955,38.71673047,249.12,248.85,1.0]
[1737644923253,38.71673047,249.15,248.88,1.0]
[1737644923457,38.71673047,249.22,248.93,312.0]
[1737644923672,38.71673047,249.25,248.98,1.0]
[1737644923962,38.71673047,249.19,249.0,1.0]
[1737644924164,38.71673047,249.16,249.0,1.0]
[1737644924338,38.71673047,249.23,248.99,14.0567]
[1737644924542,39.71673047,249.35,248.99,15.0567]
[1737644924749,0.0001,249.18,249.04,1.0]
[1737644924953,38.71673047,249.38,249.11,1.0]
[1737644925249,38.71673047,249.34,249.13,1.0]
[1737644925457,38.71673047,249.25,249.14,1.0]
[1737644925662,38.71673047,249.22,249.12,0.73401229]
[1737644925866,1.605773,249.34,249.12,0.73401229]
[1737644925867,38.71673047,249.31,249.12,4.014]
[1737644926068,38.71673047,249.4,249.14,1.0]
[1737644926249,38.71673047,249.33,249.12,14.0493]
[1737644926663,38.71673047,249.27,249.12,4.014]
[1737644926970,38.71673047,249.27,249.02,20.078]
[1737644926971,38.71673047,249.23,248.95,4.0168]
[1737644927151,38.71673047,249.23,249.03,1.0]
[1737644927358,38.71673047,249.14,248.96,0.73448402]
[1737644927560,38.71673047,249.2,248.95,4.0168]
[1737644927781,16.064256,249.33,249.08,23.776884]
[1737644927955,16.064256,249.33,249.02,20.0]
[1737644928155,4.0096,249.4,249.02,22.0]
[1737644928471,16.058354,249.4,249.14,1.0]
[1737644928646,16.058354,249.4,249.03,16.057429]
[1737644928647,38.41867716,249.34,249.21,38.41867716]
[1737644928847,38.41867716,249.34,249.06,20.0]
[1737644928848,38.41867716,249.28,249.14,0.73395337]
[1737644929077,38.41867716,249.31,249.16,38.41867716]
[1737644929257,38.41867716,249.28,249.13,38.41867716]
[1737644929773,27.787884,249.31,249.05,4.0152]
[1737644930073,4.011,249.31,249.05,14.0533]
[1737644930263,14.0331,249.41,249.05,14.0533]
[1737644930465,20.0,249.38,249.09,1.0]
[1737644930772,38.41867716,249.29,249.13,38.41867716]
[1737644930954,38.41867716,249.25,249.1,38.41867716]
[1737644931164,38.41867716,249.34,249.18,38.41867716]
[1737644931467,38.41867716,249.34,249.09,1.0]
[1737644931677,38.41867716,249.34,249.18,38.41867716]
[1737644931855,38.41867716,249.34,249.19,4.013]
[1737644932054,34.03136115,249.44,249.27,34.03136115]
[1737644932279,34.03136115,249.38,249.24,34.03136115]
[1737644932669,34.03136115,249.35,249.19,4.013]
[1737644932980,1.0,249.49,249.19,14.0455]
[1737644933282,16.051924,249.43,249.19,14.0455]
[1737644933467,20.0,249.4,249.19,4.013]
[1737644933660,50.0,249.36,248.98,4.0163]
[1737644933852,34.03136115,249.22,249.06,34.03136115]
[1737644934052,34.03136115,249.22,248.93,14.06]
[1737644934053,34.03136115,249.22,249.07,34.03136115]
[1737644934254,34.03136115,249.29,249.13,34.03136115]
[1737644934478,34.03136115,249.26,249.13,34.03136115]
[1737644934676,34.03136115,249.2,249.07,34.03136115]
[1737644934877,10.0237,249.41,248.93,34.1459]
[1737644934878,34.03136115,249.17,249.08,0.03]
[1737644935080,34.03136115,249.16,249.08,0.03]
[1737644935279,34.03136115,249.19,249.08,0.03]
[1737644935489,34.03136115,249.16,249.08,0.03]
[1737644935666,34.03136115,249.13,249.08,0.03]
[1737644935869,34.03136115,249.23,249.08,34.06136115]
[1737644936066,34.03136115,249.27,249.11,34.03136115]
[1737644936272,34.03136115,249.3,249.14,34.03136115]
[1737644936468,34.03136115,249.27,249.12,34.03136115]
[1737644936871,14.0341,249.39,249.08,0.03]
[1737644936872,34.03136115,249.17,249.08,0.03]
[1737644937181,34.03136115,249.2,249.08,0.03]
[1737644937383,34.03136115,249.26,249.12,34.03136115]
[1737644937561,34.03136115,249.19,249.08,0.03]
[1737644937761,1.0,249.37,249.08,0.03]
[1737644937762,34.03136115,249.24,249.09,34.03136115]
[1737644938269,34.03136115,249.15,249.08,0.03]
[1737644938479,34.03136115,249.18,249.08,0.03]
[1737644938675,34.03136115,249.15,249.08,0.03]
[1737644938975,34.03136115,249.1,249.08,0.03]
[1737644939463,34.03136115,249.1,248.84,34.03136115]
[1737644939656,34.03136115,249.1,248.72,4.0205]
[1737644939657,34.03136115,248.93,248.8,34.03136115]
[1737644939867,10.0366,249.09,248.7,14.0731]
[1737644940076,30.0,249.06,248.7,14.0731]
[1737644940277,30.0,249.03,248.7,14.0731]
[1737644940479,4.0141,249.12,248.73,21.0]
[1737644940689,4.0141,249.12,248.76,1.0]
[1737644940855,34.03136115,249.05,248.91,34.03136115]
[1737644941059,34.03136115,249.07,248.94,34.03136115]
[1737644941272,34.03136115,249.0,248.87,34.03136115]
[1737644941455,4.013,249.19,248.7,54.2821]
[1737644941456,30.0,249.11,248.8,1.0]
[1737644941665,14.0455,249.19,248.82,1.0]
[1737644941872,20.0,249.12,248.77,14.0691]
[1737644942070,50.0,249.08,248.77,4.0197]
[1737644942277,23.776884,248.87,248.6,16.077515]
[1737644942475,20.0,248.84,248.58,4.0228]
[1737644942781,23.776884,248.86,248.51,4.0239]
[1737644942983,34.03136115,248.75,248.61,34.03136115]
[1737644943292,30.0,248.88,248.6,34.03136115]
[1737644943489,30.0,248.91,248.68,20.0]
[1737644943690,30.0,248.94,248.68,20.0]
[1737644943864,1.0,249.11,248.41,34.2176]
[1737644943865,4.0171,248.93,248.63,1.0]
[1737644944173,4.0171,248.93,248.64,4.0218]
[1737644944384,10.0386,249.04,248.65,23.776884]
[1737644944560,10.0386,249.04,248.72,34.03136115]
[1737644944561,34.03136115,248.86,248.72,34.03136115]
[1737644944758,34.03136115,248.84,248.7,34.03136115]
[1737644944980,20.0,248.73,248.65,0.73539972]
[1737644945167,34.03136115,248.67,248.65,0.73539972]
[1737644945367,30.0,248.84,248.65,0.73539972]
[1737644945587,30.0,248.76,248.4,4.0257]
[1737644945899,20.0,248.65,248.42,34.0253]
[1737644946087,4.0205,248.72,248.42,35.0253]
[1737644946265,4.0205,248.72,248.42,34.0253]
[1737644946470,34.03136115,248.61,248.47,34.03136115]
[1737644946664,34.03136115,248.57,248.44,34.03136115]
[1737644946866,34.03136115,248.48,248.42,30.0]
[1737644947073,34.03136115,248.44,248.38,0.03]
[1737644947291,1.0,248.5,248.38,0.03]
[1737644947591,1.0,248.47,248.38,0.03]
[1737644947797,1.0,248.43,248.28,0.03]
[1737644948088,4.0251,248.44,248.28,0.03]
[1737644948287,1.0,248.35,248.28,0.03]
[1737644948465,1.0,248.23,248.2,0.03]
[1737644948669,35.03136115,248.21,248.0,0.03]
[1737644948883,34.03136115,248.04,248.0,0.03]
[1737644949083,34.03136115,248.1,248.0,0.03]
[1737644949292,23.776884,248.26,248.0,0.03]
[1737644949596,30.0,248.28,248.0,4.0622]
[1737644949889,30.0,248.31,248.11,4.0304]
[1737644950089,30.0,248.39,248.13,1.0]
[1737644950271,34.03136115,248.38,248.22,34.03136115]
[1737644950477,34.03136115,248.33,248.18,34.03136115]
[1737644950778,34.03136115,248.47,248.33,20.0]
[1737644950973,4.0238,248.52,248.19,23.776884]
[1737644951292,30.0,248.66,248.27,43.776884]
[1737644951488,34.0212,248.68,248.33,1.0]
[1737644951664,34.0212,248.68,248.27,20.0]
[1737644951665,4.0212,248.68,248.3,1.0]
[1737644951872,10.051,248.74,248.33,1.0]
[1737644952198,10.051,248.74,248.5,34.03136115]
[1737644952199,34.03136115,248.66,248.5,34.03136115]
[1737644952490,34.03136115,248.62,248.47,34.03136115]
[1737644952690,34.03136115,248.6,248.45,34.03136115]
[1737644952893,34.03136115,248.55,248.42,34.03136115]
[1737644953196,34.03136115,248.49,248.34,34.03136115]
[1737644953490,34.03136115,248.59,248.45,34.03136115]
[1737644953693,34.03136115,248.62,248.48,34.03136115]
[1737644953860,4.0212,248.68,248.56,34.03136115]
[1737644954068,34.03136115,248.67,248.53,34.03136115]
[1737644954280,34.03136115,248.7,248.56,34.03136115]
[1737644954487,31.0,248.85,248.59,34.03136115]
[1737644954488,34.03136115,248.73,248.59,34.03136115]
[1737644954691,34.03136115,248.82,248.68,34.03136115]
[1737644954897,34.03136115,248.87,248.73,34.03136115]
[1737644955189,16.095326,248.84,248.76,34.03136115]
[1737644955380,16.095326,248.84,248.79,34.03136115]
[1737644955585,34.03136115,249.01,248.83,34.03136115]
[1737644955774,34.03136115,249.04,248.89,34.03136115]
[1737644955977,34.03136115,249.07,248.94,34.03136115]
[1737644956291,34.03136115,249.1,248.96,34.03136115]
[1737644956465,34.03136115,249.13,248.99,34.03136115]
[1737644956660,34.03136115,249.13,248.8,11.048]
[1737644956661,4.0126,249.21,249.0,34.03136115]
[1737644956896,34.0126,249.21,248.81,1.0]
[1737644957188,4.0126,249.21,248.88,1.0]
[1737644957370,4.0126,249.21,248.93,20.0]
[1737644957567,30.063,249.33,248.94,1.0]
[1737644957773,34.03136115,249.25,249.11,34.03136115]
[1737644957974,34.03136115,249.27,249.13,34.03136115]
[1737644958189,34.03136115,249.31,249.17,34.03136115]
[1737644958391,34.09436115,249.33,249.19,34.03136115]
[1737644958589,0.063,249.33,249.26,34.03136115]
[1737644958799,0.063,249.33,249.1,23.776884]
[1737644958979,0.063,249.33,249.12,23.776884]
[1737644959176,0.063,249.33,249.09,1.0]
[1737644959392,0.063,249.33,249.16,20.0]
[1737644959594,0.063,249.33,249.17,23.776884]
[1737644959798,34.03136115,249.3,249.17,34.03136115]
[1737644960096,34.03136115,249.2,249.06,34.03136115]
[1737644960297,34.03136115,249.26,249.12,34.03136115]
[1737644960629,14.1006,249.33,249.02,1.0]
[1737644960782,14.1006,249.33,248.98,4.0162]
[1737644960980,1.0,249.22,248.88,4.018]
[1737644961181,20.0,249.14,248.83,4.0188]
[1737644961394,50.0,249.14,248.73,10.0508]
[1737644961693,50.0,249.14,248.86,34.03136115]
[1737644961694,34.03136115,249.0,248.86,34.03136115]
[1737644961908,34.11686235,249.04,248.8,1.0]
[1737644962116,34.11686235,248.91,248.7,5.0209]
[1737644962404,34.11686235,248.85,248.63,4.022]
[1737644962701,30.0,249.01,248.63,4.022]
[1737644962906,30.0,249.01,248.53,0.03]
[1737644962907,31.0,248.94,248.53,10.089]
[1737644963082,50.0,248.88,248.53,0.03]
[1737644963394,20.0,248.88,248.59,1.0]
[1737644963581,30.0,248.98,248.54,15.0821]
[1737644963777,34.11686235,248.74,248.54,14.0821]
[1737644964088,34.11686235,248.64,248.53,0.03]
[1737644964292,34.11686235,248.54,248.53,0.03]
[1737644964808,30.0,248.65,248.53,0.03]
[1737644965105,30.0,248.73,248.53,0.03]
[1737644965309,1.0,248.64,248.53,0.03]
[1737644965514,34.11686235,248.54,248.53,0.03]
[1737644967012,34.11686235,248.54,248.29,30.0]
[1737644967210,34.11686235,248.36,248.29,30.0]
[1737644967508,34.11686235,248.4,248.29,30.0]
[1737644967804,34.11686235,248.3,248.28,0.0001]
[1737644968008,4.0275,248.29,248.11,30.0]
[1737644968177,4.0272,248.31,248.11,30.0]
[1737644968608,31.0,248.41,248.11,30.0]
[1737644968815,34.11686235,248.3,248.09,1.0]
[1737644969102,34.11686235,248.3,247.92,74.54637384]
[1737644969103,34.11686235,248.32,248.11,30.0]
[1737644969306,34.11686235,248.31,248.11,30.0]
[1737644969523,34.11686235,248.4,248.14,21.0]
[1737644969725,38.67578558,248.44,248.18,1.0]
[1737644969926,38.67578558,248.42,248.2,30.0]
[1737644970221,38.67578558,248.38,248.2,30.0]
[1737644970397,38.67578558,248.44,248.21,1.0]
[1737644970719,38.67578558,248.44,248.2,31.0]
[1737644970720,30.0,248.67,248.24,2.0]
[1737644970921,1.0,248.59,248.27,30.0]
[1737644971220,31.0,248.52,248.27,30.0]
[1737644971400,1.0,248.42,248.27,30.0]
[1737644971603,38.67578558,248.35,248.17,0.03]
[1737644972122,38.67578558,248.31,248.18,30.0]
[1737644972324,38.67578558,248.27,248.18,30.0]
[1737644972617,38.67578558,248.27,248.17,0.03]
[1737644972804,38.67578558,248.29,248.17,4.0594]
[1737644973002,38.72269508,248.19,248.17,0.03]
[1737644973309,10.0612,248.48,248.17,0.03]
[1737644973310,30.0,248.29,248.17,0.03]
[1737644973492,1.0,248.34,248.17,0.03]
[1737644973699,30.0,248.3,248.17,0.03]
[1737644973889,30.0,248.35,248.17,0.03]
[1737644974089,4.0267,248.34,248.17,0.03]
[1737644974290,38.72269508,248.18,248.17,0.03]
[1737644974522,38.72269508,248.18,247.92,4.0335]
[1737644974700,38.72269508,248.06,247.92,4.0335]
[1737644975020,38.72269508,248.02,247.78,10.0892]
[1737644975325,38.72269508,248.02,247.78,4.0335]
[1737644975645,38.72269508,247.79,247.68,4.0373]
[1737644975793,38.72269508,247.79,247.57,312.0]
[1737644975993,38.72269508,247.68,247.53,4.0399]
[1737644976197,38.72269508,247.66,247.46,1.0]
[1737644976405,38.92448727,247.65,247.53,4.0399]
[1737644976597,30.0,247.83,247.35,57.45668831]
[1737644976812,20.0,247.8,247.46,1.0]
[1737644977016,30.0,247.79,247.53,4.0399]
[1737644977197,34.0345,247.86,247.55,1.0]
[1737644977395,4.0345,247.86,247.54,1.0]
[1737644977623,11.0818,247.98,247.53,15.1396]
[1737644977824,11.0818,247.98,247.55,1.0]
[1737644977825,38.92448727,247.8,247.55,1.0]
[1737644978014,38.92448727,247.74,247.57,14.1373]
[1737644978213,30.0,247.96,247.64,1.03]
[1737644978412,4.032,248.01,247.73,1.0]
[1737644978728,4.0299,248.14,247.75,2.0]
[1737644978897,4.0299,248.14,247.78,313.0]
[1737644979311,38.92448727,248.15,247.98,1.0]
[1737644979510,38.92448727,248.22,247.99,1.0]
[1737644979700,38.92448727,248.22,247.88,1.0]
[1737644979701,38.92448727,248.22,247.94,2.0]
[1737644979898,38.92448727,248.26,247.99,1.0]
[1737644980211,38.92448727,248.3,248.03,20.0]
[1737644980410,43.5,248.77,248.02,1.0]
[1737644980411,38.92448727,248.38,248.1,1.0]
[1737644980607,38.92448727,248.44,248.14,1.0]
[1737644980813,38.92448727,248.39,248.13,1.0]
[1737644981025,38.92448727,248.3,248.12,1.0]
[1737644981322,35.53272507,248.49,248.04,1.73720828]
[1737644981626,15.59342507,248.49,248.1,1.0]
[1737644981813,4.0243,248.49,248.24,20.0]
[1737644982008,2.0,248.54,248.08,1.0]
[1737644982221,38.92448727,248.22,248.09,4.0307]
[1737644982418,38.92448727,248.22,248.05,4.0314]
[1737644982625,38.92448727,248.25,248.05,4.0314]
[1737644982828,1.0,248.4,248.13,0.03]
[1737644983006,20.61039316,248.41,248.13,0.03]
[1737644983007,38.92448727,248.14,248.13,0.03]
[1737644983511,20.0,248.11,247.78,1.0]
[1737644983719,20.0,248.11,247.89,0.03]
[1737644983922,1.0,248.13,247.89,0.03]
[1737644984121,30.0,248.21,247.89,0.03]
[1737644984122,14.106,248.12,247.89,0.03]
[1737644984304,3.7089861,248.14,247.89,0.03]
[1737644984503,30.0,248.16,247.89,0.03]
[1737644984813,38.92448727,247.98,247.89,0.03]
[1737644985015,38.92448727,247.97,247.89,0.03]
[1737644985217,38.92448727,248.0,247.89,0.03]
[1737644985541,20.0,248.04,247.89,0.03]
[1737644985704,20.0,248.02,247.89,0.03]
[1737644986025,30.0,247.89,247.47,1.0]
[1737644986235,30.0,247.91,247.64,0.0001]
[1737644986539,38.92448727,247.65,247.64,0.0001]
[1737644987328,38.92448727,247.65,247.26,16.157437]
[1737644987329,38.92448727,247.65,247.37,0.739205]
[1737644987537,38.92448727,247.56,247.35,1.0]
[1737644987831,58.17299788,247.96,247.49,1.0]
[1737644988003,14.1156,247.95,247.54,14.139]
[1737644988209,44.1156,247.95,247.54,14.139]
[1737644988406,4.033,247.95,247.63,1.0]
[1737644988628,20.04014819,247.9,247.55,0.73866751]
[1737644988835,38.92448727,247.73,247.54,14.139]
[1737644989018,38.92448727,247.63,247.41,4.0418]
[1737644989215,38.92448727,247.63,247.26,20.53480993]
[1737644989216,38.92448727,247.5,247.25,1.0]
[1737644989428,38.92448727,247.44,247.26,4.0443]
[1737644989731,1.0,247.68,247.26,4.0443]
[1737644989732,38.92448727,247.54,247.32,1.0]
[1737644990234,38.92448727,247.64,247.38,2.0]
[1737644990441,38.92448727,247.69,247.42,1.0]
[1737644990661,38.92448727,247.5,247.33,35.10622455]
[1737644990836,20.75980802,247.68,247.39,0.73914524]
[1737644991131,1.0,247.64,247.33,4.0431]
[1737644991307,23.776884,247.48,247.05,4.0477]
[1737644991507,8.1552,247.53,247.15,1.0]
[1737644991710,8.1552,247.53,247.19,16.16975]
[1737644992011,38.92448727,247.37,247.16,1.73983307]
[1737644992227,38.92448727,247.45,247.2,20.0]
[1737644992411,38.92448727,247.59,247.38,1.0]
[1737644992722,38.92448727,247.56,247.31,1.0]
[1737644992929,30.0,247.66,247.17,14.89990314]
[1737644993127,1.0,247.67,247.2,20.0]
[1737644993440,1.0,247.67,247.22,1.0]
[1737644993738,2.2535,247.71,247.29,1.0]
[1737644993935,1.0,247.63,247.23,0.7396236]
[1737644994111,38.92448727,247.47,247.24,4.0446]
[1737644994435,38.92448727,247.5,247.26,1.0]
[1737644994637,4.0382,247.63,247.29,20.0]
[1737644994824,38.92448727,247.51,247.29,20.0]
[1737644995018,38.92448727,247.49,247.29,20.0]
[1737644995218,1.0,247.63,247.27,0.73950395]
[1737644995424,20.0,247.45,247.27,0.73950395]
[1737644995631,23.776884,247.49,247.2,4.0452]
[1737644996134,14.1505,247.34,247.0,4.0485]
[1737644996335,38.92448727,247.17,247.06,4.0475]
[1737644996743,38.92448727,247.23,247.06,4.0475]
[1737644996921,38.92448727,247.2,247.06,4.0475]
[1737644997313,38.92448727,247.14,247.06,4.0475]
[1737644997532,38.92448727,247.2,247.06,4.0475]
[1737644997814,38.92448727,247.23,247.06,14.1664]
[1737644998015,38.92448727,247.26,247.06,14.1664]
[1737644998214,38.92448727,247.23,247.09,20.0]
[1737644998415,38.92448727,247.19,247.06,4.0475]
[1737644999045,38.92448727,247.28,247.09,1.0]
[1737644999217,38.92448727,247.39,247.19,1.0]
[1737644999413,38.92448727,247.45,247.24,1.0]
[1737644999813,38.92448727,247.42,247.15,1.0]
[1737645000013,38.92448727,247.33,247.13,0.76992288]
[1737645000215,38.92448727,247.37,247.15,1.0]
[1737645000415,38.92448727,247.32,247.14,14.1619]
[1737645000840,4.0411,247.46,247.14,4.0462]
[1737645000841,38.92448727,247.22,247.14,4.0462]
[1737645001117,38.92448727,247.16,247.13,0.03]
[1737645001321,38.92448727,247.15,247.13,0.03]
[1737645001949,33.67251236,247.15,247.13,0.03]
[1737645002119,5.0462,247.14,247.13,0.03]
[1737645002455,20.0,247.01,246.79,16.199079]
[1737645002628,33.67251236,246.81,246.79,16.199079]
[1737645003524,1.0,246.82,246.79,16.199079]
[1737645003726,1.0,246.82,246.81,4.0516]
[1737645003945,1.0,246.94,246.92,1.0]
[1737645004121,30.0,247.16,247.03,20.82193716]
[1737645004323,1.0,247.1,247.03,20.82193716]
[1737645004521,1.0,247.14,247.03,20.82193716]
[1737645004821,1.0,247.09,247.03,20.82193716]
[1737645005023,5.0456,247.18,247.03,20.82193716]
[1737645005348,39.15844176,247.14,247.03,20.82193716]
[1737645005553,39.15844176,247.17,247.03,20.82193716]
[1737645006041,39.15844176,247.3,247.11,20.0]
[1737645006248,39.15844176,247.26,247.12,27.823484]
[1737645006545,39.15844176,247.14,246.94,14.1734]
[1737645006715,1.0,247.32,246.97,20.0]
[1737645006927,1.0,247.21,246.97,20.0]
[1737645007128,1.0,247.15,246.94,54.669]
[1737645007363,1.0,247.32,246.94,54.669]
[1737645007364,1.0,247.21,246.97,20.0]
[1737645007538,1.0,247.26,246.98,23.776884]
[1737645007858,39.0600886,247.24,247.1,39.0600886]
[1737645008033,39.0600886,247.13,247.08,312.0]
[1737645008337,39.0600886,247.13,246.89,20.2511]
[1737645008338,1.0,247.07,246.9,4.0502]
[1737645008542,1.0,246.99,246.9,4.0502]
[1737645008740,1.0,247.07,246.9,4.0502]
[1737645008951,1.0,247.12,246.9,4.0502]
[1737645009159,1.0,247.15,246.9,4.0502]
[1737645009350,39.0600886,247.19,247.05,39.0600886]
[1737645009666,39.0600886,247.19,246.9,4.0502]
[1737645009667,39.1230886,247.21,247.09,39.0600886]
[1737645009861,1.0,247.2,247.11,39.0600886]
[1737645010159,1.0,247.14,247.03,39.0600886]
[1737645010359,1.0,247.06,246.9,4.0502]
[1737645010536,1.0,247.0,246.9,4.0502]
[1737645010735,1.0,246.99,246.81,0.74088222]
[1737645011065,0.063,247.21,246.81,0.74088222]
[1737645011066,1.0,246.92,246.81,0.74088222]
[1737645011355,40.0600886,246.82,246.81,0.74088222]
[1737645011549,39.0600886,246.86,246.81,0.74088222]
[1737645011749,39.0600886,246.94,246.82,39.0600886]
[1737645011955,39.0600886,246.97,246.84,39.0600886]
[1737645012146,39.0600886,246.97,246.81,14.92168222]
[1737645012147,39.0600886,246.97,246.83,4.0513]
[1737645012344,39.0600886,246.97,246.84,39.0600886]
[1737645012544,1.0,246.93,246.84,39.0600886]
[1737645012746,39.0600886,246.95,246.83,4.0513]
[1737645012960,39.0600886,246.99,246.86,39.0600886]
[1737645013252,17.81362962,247.13,246.97,39.0600886]
[1737645013460,17.81362962,247.13,246.98,23.776884]
[1737645013637,17.81362962,247.13,246.83,36.485]
[1737645013638,17.81362962,247.13,246.95,20.0]
[1737645013842,1.0,247.38,246.94,1.0]
[1737645014042,1.0,247.41,246.99,23.776884]
[1737645014363,1.0,247.16,247.07,39.0600886]
[1737645014567,39.0600886,247.13,247.0,39.0600886]
[1737645014749,1.10940255,247.2,247.07,39.0600886]
[1737645014947,1.10940255,247.2,246.84,14.1792]
[1737645014948,1.0,247.16,246.84,14.1792]
[1737645015263,1.0,247.14,246.84,14.1792]
[1737645015438,0.10940255,247.2,246.87,1.0]
[1737645015639,0.10940255,247.2,246.95,23.776884]
[1737645015859,0.10940255,247.2,246.84,34.4352]
[1737645015860,0.10940255,247.2,246.86,1.0]
[1737645016060,0.10940255,247.2,247.14,39.0600886]
[1737645016257,0.10940255,247.2,247.12,39.0600886]
[1737645016460,1.0,247.18,247.1,39.0600886]
[1737645016659,1.0,247.15,247.04,39.0600886]
[1737645016964,1.0,247.15,247.08,39.0600886]
[1737645017135,0.10940255,247.14,247.08,39.0600886]
[1737645017335,0.10940255,247.14,246.89,1.0]
[1737645017650,1.0,247.4,246.89,1.0]
[1737645017651,1.0,247.35,247.09,21.0]
[1737645017968,1.0,247.42,247.13,1.0]
[1737645018150,1.0,247.47,247.19,1.0]
[1737645018338,1.0,247.49,247.38,39.0600886]
[1737645018539,1.0,247.53,247.44,39.0600886]
[1737645018850,1.0,247.53,247.12,34.3961]
[1737645018851,1.0,247.38,247.34,39.0600886]
[1737645019045,1.0,247.35,247.12,34.3961]
[1737645019241,1.0,247.41,247.16,23.776884]
[1737645019445,1.0,247.43,247.24,23.776884]
[1737645019657,0.063,247.46,247.23,20.0]
[1737645019960,0.063,247.46,247.28,20.0]
[1737645020145,1.0,247.66,247.46,23.776884]
[1737645020342,1.0,247.7,247.6,39.0600886]
[1737645020551,40.0600886,247.74,247.6,39.0600886]
[1737645020755,1.0,247.74,247.62,39.0600886]
[1737645020965,39.0600886,247.75,247.47,34.3474]
[1737645020966,1.0,247.75,247.47,34.3474]
[1737645021143,1.0,247.8,247.67,39.0600886]
[1737645021343,8.3346,247.92,247.47,34.3474]
[1737645021344,1.0,247.88,247.73,39.0600886]
[1737645021556,1.0,247.91,247.55,1.0]
[1737645021758,1.0,247.94,247.73,23.776884]
[1737645022058,9.1561,248.06,247.68,8.3346]
[1737645022372,1.0,248.08,247.7,24.776884]
[1737645022571,1.0,248.08,247.97,39.0600886]
[1737645022747,1.0,248.13,248.01,39.0600886]
[1737645023073,40.0600886,248.21,248.09,39.0600886]
[1737645023274,1.0,248.15,248.07,39.0600886]
[1737645023476,1.0,248.02,247.71,30.0]
[1737645023641,1.0,247.88,247.69,54.5035]
[1737645023840,20.0,247.98,247.69,54.5035]
[1737645023841,1.0,247.78,247.69,4.0373]
[1737645024150,1.0,247.8,247.7,0.09163937]
[1737645024346,1.0,247.83,247.71,4.0369]
[1737645024548,1.0,247.74,247.71,4.0369]
[1737645024843,1.0,247.76,247.7,4.12873937]
[1737645025046,1.0,247.73,247.7,0.09163937]
[1737645025265,1.0,247.76,247.66,4.0377]
[1737645025438,1.0,247.74,247.71,33.47995907]
[1737645025643,1.0,247.84,247.74,20.0]
[1737645025844,1.0,247.87,247.79,33.47995907]
[1737645026039,1.0,247.89,247.81,33.47995907]
[1737645026264,2.3153,248.04,247.87,33.47995907]
[1737645026265,1.0,247.96,247.87,33.47995907]
[1737645026466,2.3153,248.04,247.6,16.149875]
[1737645026467,1.0,248.02,247.93,33.47995907]
[1737645026680,1.0,248.1,247.98,33.47995907]
[1737645026975,1.0,248.07,247.72,20.0]
[1737645027152,1.0,247.97,247.72,20.0]
[1737645027358,1.0,247.85,247.67,54.5078]
[1737645027557,1.0,247.82,247.67,14.1316]
[1737645027754,1.0,247.68,247.65,33.47995907]
[1737645027976,1.0,247.65,247.58,33.47995907]
[1737645028157,33.47995907,247.71,247.42,14.1459]
[1737645028158,1.0,247.58,247.54,33.47995907]
[1737645028349,1.0,247.56,247.43,14.1453]
[1737645028675,1.0,247.77,247.43,4.0415]
[1737645028676,1.0,247.51,247.43,4.0415]
[1737645028971,1.0,247.55,247.43,4.0415]
[1737645029151,1.0,247.61,247.43,4.0415]
[1737645029345,1.0,247.59,247.54,33.47995907]
[1737645029541,1.0,247.57,247.5,33.47995907]
[1737645029769,2.0,247.55,247.43,4.0415]
[1737645029976,1.0,247.47,247.38,33.47995907]
[1737645030154,1.0,247.43,247.21,14.1579]